bitfinex/quotes_BTCUSD_20240821
["timestamp","ask_amount","ask_price","bid_price","bid_amount"]
[1724264106097,0.000862,60136.0,60135.0,0.87689202]
[1724264107293,0.000862,60136.0,60135.0,0.87689966]
[1724264108953,0.000862,60136.0,60135.0,0.92662083]
[1724264109132,0.000862,60136.0,60135.0,0.87689966]
[1724264109980,0.000862,60136.0,60135.0,0.87689966]
[1724264110621,0.000862,60136.0,60135.0,0.87689298]
[1724264111924,0.000862,60136.0,60135.0,1.4026488]
[1724264112136,0.000862,60136.0,60135.0,0.95929298]
[1724264112560,0.000862,60136.0,60135.0,1.00899425]
[1724264112777,0.000862,60136.0,60135.0,1.66067259]
[1724264112981,0.000862,60136.0,60135.0,1.72677259]
[1724264113218,0.000862,60136.0,60135.0,1.72674553]
[1724264113634,0.000862,60136.0,60135.0,1.72774553]
[1724264113840,0.000862,60136.0,60135.0,1.72674553]
[1724264114275,0.000862,60136.0,60135.0,1.89074851]
[1724264114495,0.000862,60136.0,60135.0,2.22433351]
[1724264114900,0.000862,60136.0,60135.0,1.89074851]
[1724264115327,0.0260775,60138.0,60135.0,1.89074851]
[1724264115328,0.0260775,60138.0,60137.0,1.164005]
[1724264115529,0.0260775,60138.0,60137.0,1.71597674]
[1724264115768,0.0260775,60138.0,60137.0,1.7301893]
[1724264115966,0.0260775,60138.0,60137.0,1.66544435]
[1724264116197,0.0260775,60138.0,60137.0,1.23359433]
[1724264116453,0.0260775,60138.0,60137.0,0.19968078]
[1724264116867,0.0260775,60138.0,60137.0,0.53625378]
[1724264117078,0.0260775,60138.0,60137.0,0.53626602]
[1724264117233,0.0260775,60138.0,60137.0,0.86883902]
[1724264117436,0.0260775,60138.0,60137.0,1.74659408]
[1724264117635,0.0260775,60138.0,60137.0,1.74959408]
[1724264117882,0.0260775,60138.0,60137.0,1.74961663]
[1724264118466,0.0260775,60138.0,60137.0,1.74963506]
[1724264119090,0.0260775,60138.0,60137.0,1.97913804]
[1724264119274,0.0260775,60138.0,60137.0,1.97913311]
[1724264119489,0.0260775,60138.0,60137.0,1.87982004]
[1724264119959,0.0260775,60138.0,60137.0,1.98570932]
[1724264120195,0.0260775,60138.0,60137.0,1.98571894]
[1724264120399,0.0260775,60138.0,60137.0,1.74958557]
[1724264120626,0.0260775,60138.0,60137.0,1.6503089]
[1724264120859,0.0260775,60138.0,60137.0,1.72476457]
[1724264121470,0.0260775,60138.0,60137.0,1.6503089]
[1724264121681,0.0260775,60138.0,60137.0,1.72476196]
[1724264122130,0.0260775,60138.0,60137.0,1.64766196]
[1724264122359,0.0260775,60138.0,60137.0,0.87183086]
[1724264122571,0.0260775,60138.0,60137.0,1.64763768]
[1724264122781,0.0260775,60138.0,60137.0,1.77907798]
[1724264123228,0.0268995,60138.0,60137.0,1.76089168]
[1724264123440,0.0268995,60138.0,60137.0,1.77907806]
[1724264124786,0.0268995,60138.0,60137.0,1.75423518]
[1724264124984,0.0268995,60138.0,60137.0,1.81898768]
[1724264125265,0.0268995,60138.0,60137.0,2.15156068]
[1724264125875,0.000822,60138.0,60137.0,2.15156068]
[1724264126085,0.000822,60138.0,60137.0,2.27559293]
[1724264126288,0.000822,60138.0,60137.0,1.78277992]
[1724264126501,0.000822,60138.0,60137.0,2.11158179]
[1724264126702,0.000822,60138.0,60137.0,2.08677906]
[1724264126948,0.000822,60138.0,60137.0,2.06197405]
[1724264127142,0.000822,60138.0,60137.0,1.98755795]
[1724264127344,0.000822,60138.0,60137.0,2.06199266]
[1724264128110,0.000822,60138.0,60137.0,1.72941966]
[1724264128336,0.081222,60138.0,60137.0,0.04039894]
[1724264129235,0.081222,60138.0,60137.0,0.87183094]
[1724264129431,0.000822,60138.0,60137.0,0.51707156]
[1724264129690,0.000822,60138.0,60137.0,0.53526086]
[1724264130402,0.000822,60138.0,60137.0,1.20240686]
[1724264130610,0.000822,60138.0,60137.0,0.98804456]
[1724264130805,0.000822,60138.0,60137.0,1.00623716]
[1724264131030,0.000822,60138.0,60137.0,1.00323716]
[1724264131977,0.000822,60138.0,60137.0,1.00423716]
[1724264132200,0.000822,60138.0,60137.0,1.33681016]
[1724264132386,0.000822,60138.0,60137.0,1.44746178]
[1724264132588,0.000822,60138.0,60137.0,1.42926918]
[1724264132793,0.000822,60138.0,60137.0,1.33680532]
[1724264133217,0.000822,60138.0,60137.0,1.38444172]
[1724264133419,0.000822,60138.0,60137.0,1.78203812]
[1724264133845,0.000822,60138.0,60137.0,1.70757638]
[1724264134047,0.000822,60138.0,60137.0,1.33880532]
[1724264134219,0.000822,60138.0,60137.0,1.38843714]
[1724264134427,0.000822,60138.0,60137.0,1.5018083]
[1724264134652,0.000822,60138.0,60137.0,1.96981974]
[1724264134854,0.000822,60138.0,60137.0,1.94500976]
[1724264135011,0.000822,60138.0,60137.0,1.94800934]
[1724264135209,0.000822,60138.0,60137.0,1.87356836]
[1724264135439,0.000822,60138.0,60137.0,1.87358478]
[1724264135650,0.000822,60138.0,60137.0,1.94802145]
[1724264136056,0.000822,60138.0,60137.0,0.99736935]
[1724264136483,0.000822,60138.0,60137.0,1.8140952]
[1724264136726,0.000822,60138.0,60137.0,1.8130952]
[1724264137334,0.02607432,60139.0,60138.0,0.83142]
[1724264137534,0.02607432,60139.0,60138.0,1.2002069]
[1724264137754,0.02607432,60139.0,60138.0,1.6725749]
[1724264137957,0.02607432,60139.0,60138.0,1.70497533]
[1724264138596,0.02607432,60139.0,60138.0,1.70697533]
[1724264138815,0.02607432,60139.0,60138.0,1.83112201]
[1724264139025,0.02607432,60139.0,60138.0,1.70697533]
[1724264139242,0.02607432,60139.0,60138.0,1.83110822]
[1724264139718,0.02607432,60139.0,60138.0,1.70994679]
[1724264139931,0.02607432,60139.0,60138.0,1.80926194]
[1724264140129,0.02607432,60139.0,60138.0,1.83407595]
[1724264140361,0.02607432,60139.0,60138.0,1.70994679]
[1724264141594,0.02607432,60139.0,60138.0,1.83411395]
[1724264141799,0.02607432,60139.0,60138.0,1.70994679]
[1724264142241,0.02607432,60139.0,60138.0,1.83410999]
[1724264142654,0.02607432,60139.0,60138.0,2.20751777]
[1724264142885,0.000823,60145.0,60144.0,1.311472]
[1724264143097,0.00822,60150.0,60148.0,0.871469]
[1724264143098,5.2e-07,60149.0,60148.0,0.871469]
[1724264143324,5.2e-07,60149.0,60148.0,4.31758328]
[1724264143553,5.2e-07,60149.0,60148.0,3.17917305]
[1724264143773,5.2e-07,60149.0,60148.0,3.29217012]
[1724264143982,5.2e-07,60149.0,60148.0,3.51168895]
[1724264144190,5.2e-07,60149.0,60148.0,3.29217012]
[1724264144394,5.2e-07,60149.0,60148.0,2.93265712]
[1724264144598,5.2e-07,60149.0,60148.0,2.60014412]
[1724264144804,5.2e-07,60149.0,60148.0,2.46159065]
[1724264145011,5.2e-07,60149.0,60148.0,2.31394412]
[1724264145221,5.2e-07,60149.0,60148.0,1.71642814]
[1724264145432,5.2e-07,60149.0,60148.0,1.69473547]
[1724264145654,5.2e-07,60149.0,60148.0,2.16022266]
[1724264145905,5.2e-07,60149.0,60148.0,2.51192796]
[1724264146128,5.2e-07,60149.0,60148.0,2.51392796]
[1724264146331,5.2e-07,60149.0,60148.0,2.52792796]
[1724264146538,5.2e-07,60149.0,60148.0,2.51392796]
[1724264147297,5.2e-07,60149.0,60148.0,2.51180821]
[1724264147515,5.2e-07,60149.0,60148.0,2.52480821]
[1724264147743,5.2e-07,60149.0,60148.0,2.49880821]
[1724264147946,0.00082252,60149.0,60148.0,2.52180821]
[1724264148158,0.00082252,60149.0,60148.0,2.67227653]
[1724264148367,0.00822,60150.0,60149.0,1.498281]
[1724264148683,0.00822,60150.0,60149.0,2.58196448]
[1724264148878,0.00822,60150.0,60149.0,2.82044984]
[1724264149293,0.00822,60150.0,60149.0,4.32044984]
[1724264149496,0.00822,60150.0,60149.0,4.10302097]
[1724264149872,0.00822,60150.0,60149.0,3.28150764]
[1724264150077,0.00822,60150.0,60149.0,2.76147458]
[1724264150255,0.00822,60150.0,60149.0,2.61302097]
[1724264150935,0.00822,60150.0,60149.0,2.62702097]
[1724264151145,0.00822,60150.0,60149.0,1.93424047]
[1724264151351,0.00822,60150.0,60149.0,1.49960938]
[1724264151553,0.00822,60150.0,60149.0,1.54910531]
[1724264151977,0.00822,60150.0,60149.0,1.5351395]
[1724264152243,1e-08,60150.0,60149.0,1.5211395]
[1724264152453,1e-08,60150.0,60149.0,1.48564357]
[1724264152872,1e-08,60150.0,60149.0,1.47164357]
[1724264153077,1e-08,60150.0,60149.0,1.23934059]
[1724264153298,1e-08,60150.0,60149.0,1.21127533]
[1724264153936,1e-08,60150.0,60149.0,1.22527533]
[1724264154135,0.07940001,60150.0,60149.0,0.89276833]
[1724264154339,0.07940001,60150.0,60149.0,0.87876833]
[1724264154748,0.07940001,60150.0,60149.0,0.8745665]
[1724264155611,0.07940001,60150.0,60149.0,0.8735665]
[1724264155820,0.07940001,60150.0,60149.0,0.0422995]
[1724264156783,0.07940001,60150.0,60149.0,0.0282995]
[1724264156991,1.13625799,60150.0,60149.0,0.0282995]
[1724264157189,1.13625799,60150.0,60149.0,0.019]
[1724264157190,2.73925999,60150.0,60149.0,0.019]
[1724264157393,0.638759,60137.0,60136.0,0.0009042]
[1724264157598,0.80276198,60137.0,60136.0,0.0009042]
[1724264158207,1.13533498,60137.0,60136.0,0.0009042]
[1724264159041,0.82884012,60137.0,60136.0,0.0009042]
[1724264159273,0.83284012,60137.0,60136.0,0.0009042]
[1724264159854,0.82884012,60137.0,60136.0,0.0009042]
[1724264160056,1.16141312,60137.0,60136.0,0.0009042]
[1724264160281,0.83684012,60137.0,60136.0,0.0019042]
[1724264160485,0.82884012,60137.0,60136.0,0.0009042]
[1724264160696,0.83284012,60137.0,60136.0,0.0009042]
[1724264160912,0.83584012,60137.0,60136.0,0.0009042]
[1724264161120,0.50326712,60137.0,60136.0,0.0009042]
[1724264161336,0.83284012,60137.0,60136.0,0.0009042]
[1724264161759,1.17141312,60137.0,60136.0,0.0019042]
[1724264162177,1.16141312,60137.0,60136.0,0.0009042]
[1724264162354,1.17041312,60137.0,60136.0,0.0009042]
[1724264162645,1.16541312,60137.0,60136.0,0.0009042]
[1724264163068,1.65359984,60137.0,60136.0,0.0009042]
[1724264163280,1.74859984,60137.0,60136.0,0.0009042]
[1724264163695,1.75459984,60137.0,60136.0,0.0009042]
[1724264163908,1.59398612,60137.0,60136.0,0.0009042]
[1724264164128,1.62158592,60137.0,60136.0,0.0009042]
[1724264164339,1.62358592,60137.0,60136.0,0.0009042]
[1724264164552,3.22365892,60137.0,60136.0,0.0009042]
[1724264164763,3.3936377,60137.0,60136.0,0.0019042]
[1724264165433,0.83164,60122.0,60121.0,0.0009042]
[1724264165646,1.12544298,60122.0,60121.0,0.0009042]
[1724264167169,1.45809898,60122.0,60121.0,0.0009042]
[1724264167394,1.42829898,60122.0,60121.0,0.0009042]
[1724264167634,0.004,60122.0,60121.0,0.1672352]
[1724264167844,0.004,60122.0,60121.0,0.51443775]
[1724264168279,0.006,60122.0,60121.0,0.51443775]
[1724264168706,0.004,60122.0,60121.0,0.84709975]
[1724264168920,0.1757,60130.0,60129.0,0.166309]
[1724264168921,0.1,60130.0,60129.0,0.166309]
[1724264169131,0.241909,60129.0,60123.0,0.498969]
[1724264169338,0.166315,60127.0,60123.0,0.166324]
[1724264169550,0.16400298,60127.0,60124.0,0.01451471]
[1724264169765,0.231618,60126.0,60124.0,0.01451471]
[1724264169981,0.231618,60126.0,60121.0,0.0039042]
[1724264169982,0.166328,60122.0,60121.0,0.0049042]
[1724264170228,0.66298698,60122.0,60121.0,0.0049042]
[1724264170441,0.73858698,60122.0,60121.0,0.0009042]
[1724264170652,1.07124298,60122.0,60121.0,0.0009042]
[1724264171289,0.73858698,60122.0,60121.0,0.0009042]
[1724264172313,0.74258698,60122.0,60121.0,0.0009042]
[1724264172517,0.73858698,60122.0,60121.0,0.0009042]
[1724264172923,0.40993098,60122.0,60121.0,0.0009042]
[1724264173187,0.41293098,60122.0,60121.0,0.0009042]
[1724264173530,1.07824298,60122.0,60121.0,0.0009042]
[1724264173908,0.74558698,60122.0,60121.0,0.0009042]
[1724264175485,0.24660298,60122.0,60121.0,0.0009042]
[1724264175699,0.17100298,60122.0,60121.0,0.0009042]
[1724264175901,0.17100298,60122.0,60121.0,0.1672352]
[1724264176105,0.17100298,60122.0,60121.0,0.4998972]
[1724264176309,0.007,60122.0,60121.0,0.8325592]
[1724264176513,0.004,60122.0,60121.0,0.8325592]
[1724264176716,0.1,60128.0,60125.0,0.166319]
[1724264176923,0.16400298,60127.0,60125.0,0.166319]
[1724264177132,0.1,60126.0,60125.0,0.166319]
[1724264177531,0.19008527,60127.0,60126.0,0.166317]
[1724264178384,0.19008527,60127.0,60126.0,0.498951]
[1724264178600,0.19308527,60127.0,60126.0,0.166317]
[1724264178805,0.19008527,60127.0,60126.0,0.166317]
[1724264179225,0.19308527,60127.0,60126.0,0.166317]
[1724264180060,0.19408527,60127.0,60126.0,0.166317]
[1724264180492,0.03008229,60127.0,60126.0,0.970585]
[1724264180694,0.03008229,60127.0,60126.0,1.635853]
[1724264181108,0.55347512,60143.0,60140.0,0.166277]
[1724264181319,0.16400298,60142.0,60140.0,0.166277]
[1724264182567,0.007,60142.0,60141.0,0.498826]
[1724264182780,0.007,60142.0,60141.0,0.831377]
[1724264182979,1e-08,60150.0,60142.0,0.001]
[1724264183190,0.16482498,60149.0,60147.0,0.166257]
[1724264183615,0.16482498,60149.0,60148.0,0.166256]
[1724264183827,0.000822,60149.0,60148.0,0.166256]
[1724264184061,0.000822,60149.0,60148.0,0.498769]
[1724264184865,0.000822,60149.0,60148.0,0.832282]
[1724264184866,0.002822,60149.0,60148.0,0.832282]
[1724264185506,0.005822,60149.0,60148.0,0.832282]
[1724264185927,0.002822,60149.0,60148.0,0.832282]
[1724264186148,0.003822,60149.0,60148.0,1.164795]
[1724264186362,0.003822,60149.0,60148.0,0.832282]
[1724264188020,0.001822,60149.0,60148.0,0.842282]
[1724264188227,0.001822,60149.0,60148.0,1.315495]
[1724264188432,0.001822,60149.0,60148.0,1.325495]
[1724264188433,0.002822,60149.0,60148.0,1.325495]
[1724264189264,0.001822,60149.0,60148.0,1.315495]
[1724264189679,0.002822,60149.0,60148.0,1.326495]
[1724264192187,0.002822,60149.0,60148.0,0.931882]
[1724264193700,0.002822,60149.0,60148.0,0.930882]
[1724264193895,0.002822,60149.0,60148.0,0.852282]
[1724264194103,0.002822,60149.0,60148.0,0.853282]
[1724264194312,0.002822,60149.0,60148.0,0.021]
[1724264194534,0.002862,60149.0,60148.0,0.021]
[1724264195340,0.002862,60149.0,60148.0,0.187256]
[1724264195547,0.002862,60149.0,60148.0,0.021]
[1724264195548,0.33311798,60149.0,60148.0,0.021]
[1724264195761,0.002862,60149.0,60148.0,0.187256]
[1724264195967,0.002862,60149.0,60148.0,0.519769]
[1724264196405,0.001862,60149.0,60148.0,0.508769]
[1724264196779,0.001862,60149.0,60148.0,0.844282]
[1724264196874,0.001862,60149.0,60148.0,1.318295]
[1724264197801,0.001862,60149.0,60148.0,1.308295]
[1724264197802,1e-08,60149.0,60148.0,1.308295]
[1724264198064,1e-08,60149.0,60148.0,1.310295]
[1724264199661,1e-08,60149.0,60148.0,1.642808]
[1724264200283,1e-08,60149.0,60148.0,1.639808]
[1724264200707,1e-08,60149.0,60148.0,1.640808]
[1724264201150,1e-08,60149.0,60148.0,1.310295]
[1724264201338,1e-08,60149.0,60148.0,1.308295]
[1724264201755,0.00100001,60149.0,60148.0,1.322295]
[1724264202587,1e-08,60149.0,60148.0,1.305295]
[1724264203225,0.00100001,60149.0,60148.0,0.846282]
[1724264203685,0.00100001,60149.0,60148.0,1.256995]
[1724264203895,0.00100001,60149.0,60148.0,1.319395]
[1724264204330,0.00100001,60149.0,60148.0,1.81691098]
[1724264204519,1e-08,60150.0,60149.0,1.305474]
[1724264204730,1e-08,60150.0,60149.0,1.80298398]
[1724264204937,1e-08,60150.0,60149.0,1.80198398]
[1724264205149,1e-08,60150.0,60149.0,2.14979048]
[1724264205349,0.00822,60154.0,60153.0,1.308397]
[1724264205562,0.00822,60154.0,60153.0,1.88459998]
[1724264205773,0.00822,60154.0,60153.0,2.34606959]
[1724264205979,0.00822,60154.0,60153.0,3.01103959]
[1724264206404,0.00822,60154.0,60153.0,2.64237001]
[1724264206824,0.00922,60154.0,60153.0,2.6648485]
[1724264207236,0.00822,60154.0,60153.0,2.6508485]
[1724264207448,0.00922,60154.0,60153.0,2.58259009]
[1724264207655,0.00922,60154.0,60153.0,2.64574245]
[1724264208686,0.00922,60154.0,60153.0,4.14574245]
[1724264208888,0.00822,60154.0,60153.0,4.13174245]
[1724264209122,0.00822,60154.0,60153.0,4.14574245]
[1724264209699,0.000822,60156.0,60155.0,1.834607]
[1724264209900,0.000822,60156.0,60155.0,2.28040715]
[1724264210098,0.000822,60156.0,60155.0,2.61288115]
[1724264211308,0.000822,60156.0,60155.0,2.62688115]
[1724264212491,0.000822,60156.0,60155.0,2.64088115]
[1724264213370,0.000822,60156.0,60155.0,2.62688115]
[1724264213574,0.000822,60156.0,60155.0,2.61288115]
[1724264213783,0.000822,60156.0,60155.0,2.64088115]
[1724264215245,0.000822,60156.0,60155.0,2.63888115]
[1724264215885,0.000822,60156.0,60155.0,1.94793315]
[1724264216083,0.000822,60156.0,60155.0,1.94318386]
[1724264216497,0.00822,60163.0,60155.0,1.94318386]
[1724264216498,0.06194,60160.0,60159.0,0.83213]
[1724264216692,0.06194,60160.0,60159.0,0.18143947]
[1724264216921,0.06194,60160.0,60159.0,0.18043947]
[1724264217125,0.06194,60160.0,60159.0,0.51389147]
[1724264218089,0.06194,60160.0,60159.0,0.51789147]
[1724264218305,0.06194,60160.0,60159.0,0.51389147]
[1724264218500,0.06194,60160.0,60159.0,0.51289147]
[1724264219016,0.06194,60160.0,60159.0,0.51389147]
[1724264219693,0.06194,60160.0,60159.0,0.01421347]
[1724264219879,1.13625798,60160.0,60159.0,0.01421347]
[1724264220308,0.166233,60157.0,60152.0,0.001]
[1724264220506,0.166233,60157.0,60152.0,0.167244]
[1724264220712,0.166233,60157.0,60153.0,0.01426508]
[1724264220915,0.0804,60158.0,60153.0,0.51298908]
[1724264221134,0.246629,60158.0,60154.0,0.166238]
[1724264221345,0.166234,60156.0,60154.0,0.01425648]
[1724264221557,0.0644,60154.0,60149.0,0.166253]
[1724264221745,0.166244,60153.0,60149.0,0.166253]
[1724264222017,0.22840298,60154.0,60153.0,0.003]
[1724264222240,0.243039,60155.0,60154.0,0.499718]
[1724264222241,0.0768,60155.0,60154.0,0.499718]
[1724264223573,0.0768,60155.0,60154.0,0.001]
[1724264223785,0.40703998,60155.0,60154.0,0.01525648]
[1724264223999,0.40703998,60155.0,60154.0,0.001]
[1724264224219,0.46763998,60155.0,60154.0,0.001]
[1724264224428,0.46763998,60155.0,60154.0,0.02125648]
[1724264224640,0.46763998,60155.0,60154.0,0.006]
[1724264224900,0.46763998,60155.0,60154.0,0.02525648]
[1724264225080,0.30140298,60155.0,60154.0,0.011]
[1724264225290,0.30140298,60155.0,60154.0,0.02525648]
[1724264225492,0.30140298,60155.0,60154.0,0.011]
[1724264225692,0.1374,60155.0,60154.0,0.509718]
[1724264225915,0.1374,60155.0,60154.0,0.52397448]
[1724264227025,0.1374,60155.0,60154.0,0.85645348]
[1724264227258,0.02606839,60157.0,60156.0,0.167234]
[1724264227464,0.02606839,60157.0,60156.0,0.499702]
[1724264227671,0.02606839,60157.0,60156.0,0.53214627]
[1724264227914,0.02606839,60157.0,60156.0,0.86461427]
[1724264228346,0.02606839,60157.0,60156.0,1.19708227]
[1724264228553,0.02606839,60157.0,60156.0,1.20008106]
[1724264228978,0.000862,60160.0,60159.0,1.164582]
[1724264229181,0.000862,60160.0,60159.0,1.18278579]
[1724264229386,0.00822,60163.0,60159.0,1.18278579]
[1724264229387,0.00822,60163.0,60162.0,0.832087]
[1724264229597,0.00822,60163.0,60162.0,1.2932132]
[1724264229799,0.00822,60163.0,60162.0,1.23225897]
[1724264230016,0.00822,60163.0,60162.0,1.24644663]
[1724264230222,0.00822,60163.0,60162.0,1.19691345]
[1724264230436,0.00822,60163.0,60162.0,1.27121008]
[1724264230630,0.00822,60163.0,60162.0,1.27921008]
[1724264230873,0.00822,60163.0,60162.0,1.64781256]
[1724264231289,0.00822,60163.0,60162.0,2.15745391]
[1724264231767,0.00822,60163.0,60162.0,2.15742108]
[1724264232206,0.00822,60163.0,60162.0,1.6609831]
[1724264232625,0.00822,60163.0,60162.0,1.72624089]
[1724264232830,0.00822,60163.0,60162.0,1.35767124]
[1724264233035,0.00822,60163.0,60162.0,1.36567124]
[1724264233453,0.00822,60163.0,60162.0,1.25441756]
[1724264234079,0.00822,60163.0,60162.0,1.26096745]
[1724264234275,0.00822,60163.0,60162.0,1.7377511]
[1724264234480,0.00822,60163.0,60162.0,1.64748583]
[1724264234715,0.00822,60163.0,60162.0,1.75449414]
[1724264234919,0.00822,60163.0,60162.0,1.9959186]
[1724264235147,0.00822,60163.0,60162.0,1.9879186]
[1724264235569,0.00822,60163.0,60162.0,2.22612425]
[1724264235772,0.00822,60163.0,60162.0,2.60493212]
[1724264235972,0.00822,60163.0,60162.0,2.60193212]
[1724264236175,0.00822,60163.0,60162.0,2.50292158]
[1724264236391,0.00822,60163.0,60162.0,2.50592158]
[1724264236606,0.00822,60163.0,60162.0,2.50692158]
[1724264236748,0.00822,60163.0,60162.0,2.49492158]
[1724264237306,0.00822,60163.0,60162.0,2.60481818]
[1724264237436,0.00822,60163.0,60162.0,2.50891148]
[1724264238069,0.00822,60163.0,60162.0,2.52291148]
[1724264238269,0.00822,60163.0,60162.0,2.62180492]
[1724264238904,0.00822,60163.0,60162.0,2.64666487]
[1724264239119,0.00822,60163.0,60162.0,2.52291148]
[1724264239320,0.00822,60163.0,60162.0,2.62180465]
[1724264239524,0.00822,60163.0,60162.0,2.33460465]
[1724264240146,0.00822,60163.0,60162.0,2.3164325]
[1724264240310,0.00822,60163.0,60162.0,2.3346056]
[1724264240513,0.00822,60163.0,60162.0,2.36262647]
[1724264240720,0.00822,60163.0,60162.0,2.19862349]
[1724264241097,0.00822,60163.0,60162.0,2.17391679]
[1724264241335,0.00822,60163.0,60162.0,2.17391555]
[1724264242363,0.00822,60163.0,60162.0,2.09972908]
[1724264242780,0.00822,60163.0,60162.0,2.22339996]
[1724264242981,0.00822,60163.0,60162.0,2.09972908]
[1724264243390,0.00822,60163.0,60162.0,2.22346021]
[1724264243604,0.00822,60163.0,60162.0,2.22346399]
[1724264243819,0.00822,60163.0,60162.0,2.38746697]
[1724264244244,0.00822,60163.0,60162.0,2.26373206]
[1724264244476,1e-08,60163.0,60162.0,2.26373206]
[1724264244682,1e-08,60163.0,60162.0,2.38746697]
[1724264244859,1e-08,60163.0,60162.0,2.05293217]
[1724264245099,1e-08,60163.0,60162.0,1.64955465]
[1724264245317,0.07540001,60163.0,60162.0,1.36334417]
[1724264245519,0.07540001,60163.0,60162.0,0.8924598]
[1724264245725,1e-08,60163.0,60162.0,0.8924598]
[1724264245930,1e-08,60163.0,60162.0,1.0335598]
[1724264246135,1e-08,60163.0,60162.0,1.41550695]
[1724264246438,1e-08,60163.0,60162.0,1.33380966]
[1724264246631,1e-08,60163.0,60162.0,1.33799406]
[1724264246833,1e-08,60163.0,60162.0,1.35299406]
[1724264247037,1e-08,60163.0,60162.0,1.34599406]
[1724264247474,1e-08,60163.0,60162.0,1.21089406]
[1724264247682,1e-08,60163.0,60162.0,1.22489406]
[1724264247889,1e-08,60163.0,60162.0,1.27438998]
[1724264248103,1e-08,60163.0,60162.0,1.22489406]
[1724264249420,1e-08,60163.0,60162.0,1.2991486]
[1724264249641,1e-08,60163.0,60162.0,1.59349373]
[1724264249861,1e-08,60163.0,60162.0,1.66778596]
[1724264251484,1e-08,60163.0,60162.0,2.00022096]
[1724264251707,1e-08,60163.0,60162.0,2.00132934]
[1724264252460,1e-08,60163.0,60162.0,1.98732934]
[1724264252642,1e-08,60163.0,60162.0,1.97332934]
[1724264252868,1e-08,60163.0,60162.0,2.00132934]
[1724264254064,1e-08,60163.0,60162.0,1.66889434]
[1724264254262,1e-08,60163.0,60162.0,1.79271482]
[1724264254467,1e-08,60163.0,60162.0,1.66889434]
[1724264254679,1e-08,60163.0,60162.0,1.76795324]
[1724264254877,1e-08,60163.0,60162.0,1.69255324]
[1724264255078,1e-08,60163.0,60162.0,1.59349434]
[1724264255284,1e-08,60163.0,60162.0,1.66779531]
[1724264255506,1e-08,60163.0,60162.0,2.00680262]
[1724264255702,1e-08,60163.0,60162.0,2.10078774]
[1724264255909,1e-08,60163.0,60162.0,2.12554932]
[1724264256146,1e-08,60163.0,60162.0,2.00172884]
[1724264256343,1e-08,60163.0,60162.0,1.79311432]
[1724264256971,1e-08,60163.0,60162.0,2.12554932]
[1724264257791,1e-08,60163.0,60162.0,1.79311432]
[1724264258414,1e-08,60163.0,60162.0,1.6925337]
[1724264258828,1e-08,60163.0,60162.0,1.69343449]
[1724264259252,1e-08,60163.0,60162.0,1.67524937]
[1724264259431,0.1445,60173.0,60172.0,0.83095]
[1724264259616,0.1445,60173.0,60172.0,0.84912878]
[1724264259835,0.1445,60173.0,60172.0,0.86637183]
[1724264259955,0.1445,60173.0,60172.0,0.86737183]
[1724264260390,1.13943798,60173.0,60172.0,0.03542183]
[1724264260595,0.80706398,60173.0,60172.0,0.012]
[1724264261043,0.80706398,60173.0,60172.0,0.02924305]
[1724264261244,0.80706398,60173.0,60172.0,0.012]
[1724264261916,0.80706398,60173.0,60172.0,0.02324305]
[1724264262130,0.80706398,60173.0,60172.0,0.006]
[1724264262268,0.47568998,60173.0,60172.0,0.02335305]
[1724264262631,0.47568998,60173.0,60166.0,0.332411]
[1724264262632,0.166191,60172.0,60167.0,0.332404]
[1724264262854,0.16400298,60171.0,60168.0,0.1662]
[1724264263411,0.16400298,60171.0,60169.0,0.18358444]
[1724264263823,0.001,60172.0,60169.0,0.01838744]
[1724264264021,0.001,60172.0,60171.0,0.830965]
[1724264264427,0.001,60172.0,60171.0,0.84832951]
[1724264264613,0.001,60172.0,60171.0,0.84932951]
[1724264264994,0.03428068,60177.0,60176.0,0.166179]
[1724264265197,0.03428068,60177.0,60176.0,0.498537]
[1724264265416,0.03428068,60177.0,60176.0,0.51584419]
[1724264266276,0.03428068,60177.0,60176.0,0.18348619]
[1724264266523,0.03428068,60177.0,60176.0,0.01830719]
[1724264266655,0.03428068,60177.0,60176.0,0.18648619]
[1724264267058,0.03428068,60177.0,60176.0,0.02030719]
[1724264267059,0.51195966,60177.0,60176.0,0.02030719]
[1724264267259,1.17666366,60177.0,60176.0,0.01830719]
[1724264267499,1.55602081,60177.0,60176.0,0.001]
[1724264267805,1.50901566,60177.0,60176.0,0.001]
[1724264267958,0.1461,60170.0,60165.0,0.332416]
[1724264268158,0.33020198,60169.0,60166.0,0.01742184]
[1724264268567,0.16400298,60169.0,60166.0,0.18362684]
[1724264268789,0.16400298,60169.0,60167.0,0.166203]
[1724264269254,0.16400298,60169.0,60168.0,0.01739891]
[1724264269739,0.1461,60170.0,60168.0,0.01739891]
[1724264269915,0.1461,60170.0,60165.0,0.332416]
[1724264269916,0.1461,60170.0,60169.0,0.166198]
[1724264270113,0.1461,60170.0,60169.0,0.01738744]
[1724264271094,0.47629798,60170.0,60169.0,0.01738744]
[1724264271296,1.21132713,60170.0,60169.0,0.01738744]
[1724264271494,1.21132713,60170.0,60162.0,0.05042961]
[1724264271495,0.638945,60163.0,60162.0,0.0009042]
[1724264271710,2.7873264,60163.0,60162.0,0.0009042]
[1724264271925,2.9063264,60163.0,60162.0,0.0009042]
[1724264273119,2.9073264,60163.0,60162.0,0.0019042]
[1724264273343,2.9093264,60163.0,60162.0,0.0029042]
[1724264273771,2.9093264,60163.0,60162.0,0.0019042]
[1724264273902,2.9113264,60163.0,60162.0,0.0019042]
[1724264274105,2.9073264,60163.0,60162.0,0.0029042]
[1724264274305,2.85930798,60163.0,60162.0,0.0019042]
[1724264274749,2.86030798,60163.0,60162.0,0.0029042]
[1724264274962,2.50487798,60163.0,60162.0,0.0029042]
[1724264275348,0.2393,60163.0,60162.0,0.0019042]
[1724264275555,0.1,60163.0,60162.0,0.01563803]
[1724264275709,0.001,60163.0,60162.0,0.01763803]
[1724264276103,0.26621,60165.0,60162.0,0.01563803]
[1724264276369,0.26400298,60165.0,60163.0,0.166214]
[1724264276596,0.16400298,60165.0,60163.0,0.01472236]
[1724264277293,0.33021298,60165.0,60163.0,0.01472236]
[1724264277495,0.32981287,60165.0,60163.0,0.01472236]
[1724264278440,0.166212,60164.0,60163.0,0.01572236]
[1724264278841,0.16460287,60165.0,60163.0,0.002]
[1724264279081,0.001,60165.0,60163.0,0.01672236]
[1724264279228,0.166205,60167.0,60163.0,0.18093536]
[1724264279642,0.001,60164.0,60163.0,0.18293536]